bitfinex-derivatives/quotes_SOLF0:USTF0_20241025
["timestamp","ask_amount","ask_price","bid_price","bid_amount"]
[1729830656950,2.8852,173.38,173.36,5.92]
[1729830657237,337.0,173.43,173.36,5.92]
[1729830657445,2.8853,173.37,173.36,5.92]
[1729830657742,625.0,173.36,173.14,19.95523391]
[1729830657942,19.95523391,173.29,173.17,2.4594]
[1729830658640,19.95523391,173.29,173.12,8.4948]
[1729830658641,19.95523391,173.23,173.12,8.4948]
[1729830660441,2.8885,173.18,173.12,8.4948]
[1729830661545,2.8886,173.17,173.12,8.4948]
[1729830661947,19.95523391,173.23,173.12,11.3842]
[1729830662145,19.95523391,173.23,173.13,2.4895]
[1729830662646,19.95523391,173.23,173.14,2.458]
[1729830663342,2.8884,173.19,173.14,2.458]
[1729830663648,19.95523391,173.23,173.14,2.458]
[1729830663942,19.95523391,173.2,173.13,5.92]
[1729830664239,2.8891,173.14,173.13,5.92]
[1729830664747,337.0,173.23,173.05,19.95523391]
[1729830664748,19.95523391,173.18,173.05,19.95523391]
[1729830664947,19.95523391,173.18,173.06,8.4959]
[1729830665444,337.0,173.22,173.07,19.95523391]
[1729830665743,337.0,173.22,173.1,19.95523391]
[1729830665942,2.8884,173.19,173.11,5.92]
[1729830666137,337.0,173.22,173.11,5.92]
[1729830666336,2.8887,173.17,173.11,5.92]
[1729830666839,2.8882,173.2,173.13,2.8892]
[1729830667050,5.92,173.26,173.14,2.4514]
[1729830668346,2.8886,173.18,173.14,2.4514]
[1729830668744,5.92,173.26,173.14,2.4514]
[1729830668948,19.95523391,173.23,173.14,2.4514]
[1729830669346,2.888,173.21,173.14,2.4514]
[1729830669547,19.95523391,173.23,173.14,2.4514]
[1729830670350,2.8887,173.17,173.14,2.4514]
[1729830670554,337.0,173.25,173.12,5.92]
[1729830670555,19.95523391,173.19,173.12,5.92]
[1729830670951,2.8893,173.13,173.12,5.92]
[1729830671448,19.95523391,173.19,173.07,2.4013]
[1729830671647,19.95523391,173.16,173.07,2.4013]
[1729830671845,19.95523391,173.16,173.08,5.92]
[1729830673857,2.8897,173.11,173.08,5.92]
[1729830674358,19.95523391,173.11,172.94,62.4]
[1729830674556,19.95523391,173.08,172.96,7.2425]
[1729830674757,19.95523391,173.08,172.98,2.8917]
[1729830674957,19.95523391,173.12,172.97,19.95523391]
[1729830675160,19.95523391,173.12,172.96,7.2425]
[1729830675355,19.95523391,173.12,172.96,27.19773391]
[1729830676160,19.95523391,173.12,172.96,7.2425]
[1729830676353,2.8901,173.08,173.01,2.8911]
[1729830676557,19.95523391,173.15,173.02,5.92]
[1729830676961,19.95523391,173.15,173.03,2.8909]
[1729830677260,19.95523391,173.15,173.02,25.87523391]
[1729830677463,356.95523391,173.17,173.06,2.8904]
[1729830677759,356.95523391,173.17,173.07,10.8348]
[1729830678350,2.8891,173.14,173.08,2.8901]
[1729830678559,2.8891,173.14,173.07,10.8348]
[1729830679260,356.95523391,173.17,173.07,10.8348]
[1729830679457,337.0,173.25,173.08,19.95523391]
[1729830679763,19.95523391,173.2,173.09,2.8898]
[1729830679964,19.95523391,173.2,173.07,10.8348]
[1729830679965,2.8894,173.13,173.1,5.92]
[1729830680855,19.95523391,173.17,173.1,5.92]
[1729830681264,19.95523391,173.17,173.07,4.9148]
[1729830681465,19.95523391,173.17,173.08,5.9]
[1729830681662,19.95523391,173.17,173.07,4.9148]
[1729830681866,19.95523391,173.2,173.06,64.7511]
[1729830681867,19.95523391,173.14,173.06,68.3]
[1729830682171,19.95523391,173.14,173.06,5.9]
[1729830682356,19.95523391,173.12,173.06,5.9]
[1729830682661,2.8903,173.07,173.05,5.9]
[1729830682859,19.95523391,173.12,173.05,5.9]
[1729830683059,2.8903,173.07,173.05,5.9]
[1729830683255,19.95523391,173.09,173.0,2.4373]
[1729830683463,2.8903,173.07,173.01,5.9]
[1729830683660,19.95523391,173.09,173.01,5.9]
[1729830683862,19.95523391,173.09,173.0,2.4373]
[1729830684167,2.8906,173.05,173.01,5.9]
[1729830685061,19.95523391,173.09,173.01,5.9]
[1729830685270,19.95523391,173.11,173.01,5.9]
[1729830685965,2.8901,173.09,173.03,2.8909]
[1729830686267,49.7431689,173.56,173.01,5.9]
[1729830686268,5.9,173.21,173.04,19.95523391]
[1729830686565,19.95523391,173.19,173.05,2.4836]
[1729830686758,19.95523391,173.19,173.06,5.9]
[1729830686958,2.8894,173.13,173.06,8.7904]
[1729830687160,19.95523391,173.19,173.06,8.7904]
[1729830687364,2.8899,173.09,173.06,5.9]
[1729830687565,19.95523391,173.16,173.06,5.9]
[1729830688259,19.95523391,173.13,173.06,5.9]
[1729830688653,2.8896,173.11,173.06,5.9]
[1729830688856,19.95523391,173.13,173.06,5.9]
[1729830689265,2.8902,173.08,173.06,5.9]
[1729830691061,19.95523391,173.2,173.06,5.9]
[1729830691062,19.95523391,173.16,173.06,5.9]
[1729830692063,2.8902,173.08,173.06,5.9]
[1729830692464,19.95523391,173.1,173.0,2.4373]
[1729830692767,19.95523391,173.1,173.04,5.9]
[1729830693266,2.8906,173.05,173.04,5.9]
[1729830695265,19.95523391,173.1,173.04,5.9]
[1729830695968,2.8906,173.06,173.04,5.9]
[1729830696759,2.8906,173.05,173.04,5.9]
[1729830698259,2.8906,173.05,172.97,4.8555]
[1729830698260,19.95523391,173.05,172.98,5.9]
[1729830698576,19.95523391,173.07,172.98,5.9]
[1729830698759,337.0,173.09,172.98,5.9]
[1729830700659,2.8903,173.07,173.03,2.8909]
[1729830700864,337.0,173.09,173.04,5.9]
[1729830701066,337.0,173.09,173.05,5.9]
[1729830701671,2.8904,173.07,173.05,5.9]
[1729830702266,2.8904,173.06,173.05,5.9]
[1729830702665,337.0,173.09,173.02,5.9]
[1729830702867,19.95523391,173.1,173.02,5.9]
[1729830703065,2.8909,173.03,173.02,5.9]
[1729830706369,19.95523391,173.1,173.02,5.9]
[1729830706570,2.8906,173.06,173.02,5.9]
[1729830706764,19.95523391,173.14,173.02,5.9]
[1729830706967,19.95523391,173.14,173.03,5.2602]
[1729830706968,2.8901,173.09,173.03,5.2602]
[1729830707671,19.95523391,173.14,173.03,2.3694]
[1729830707878,337.0,173.16,173.03,2.3694]
[1729830708174,2.8894,173.13,173.05,2.8905]
[1729830708373,337.0,173.16,173.05,2.8905]
[1729830708571,337.0,173.16,173.03,2.3694]
[1729830708775,2.8896,173.11,173.06,2.8904]
[1729830708975,2.8896,173.11,173.07,5.9]
[1729830709677,2.8894,173.13,173.07,8.7902]
[1729830709878,337.0,173.16,173.07,8.7902]
[1729830710075,337.0,173.16,173.07,5.9]
[1729830710275,2.8896,173.11,173.07,5.9]
[1729830711667,2.8899,173.1,173.07,5.9]
[1729830711876,19.95523391,173.17,173.07,5.9]
[1729830714381,19.95523391,173.2,173.09,2.8899]
[1729830714574,2.889,173.15,173.07,25.85523391]
[1729830714981,19.95523391,173.21,173.11,2.8894]
[1729830715178,2.8887,173.17,173.12,5.94]
[1729830715383,19.95523391,173.21,173.12,5.94]
[1729830716579,342.94,173.23,173.12,5.94]
[1729830716580,2.8893,173.13,173.12,5.94]
[1729830717384,2.8892,173.14,173.12,5.94]
[1729830718082,19.95523391,173.21,173.12,5.94]
[1729830718285,2.8887,173.17,173.12,5.94]
[1729830719289,2.8887,173.17,173.12,8.8294]
[1729830720382,2.8885,173.18,173.13,2.8891]
[1729830721185,2.8882,173.2,173.12,5.94]
[1729830721385,34.5962,173.57,173.14,19.95523391]
[1729830721386,19.95523391,173.26,173.14,19.95523391]
[1729830721587,337.0,173.31,173.14,19.95523391]
[1729830721791,5.94,173.32,173.18,2.8884]
[1729830721792,2.8875,173.24,173.18,2.8884]
[1729830721987,2.8875,173.24,173.19,5.94]
[1729830722479,2.8871,173.26,173.19,8.5452]
[1729830722678,19.95523391,173.3,173.19,8.5452]
[1729830723193,2.8877,173.23,173.19,8.5452]
[1729830723388,2.8877,173.23,173.2,5.94]
[1729830723589,19.95523391,173.27,173.2,5.94]
[1729830723789,19.95523391,173.3,173.2,5.94]
[1729830724790,2.8875,173.24,173.2,5.94]
[1729830724986,19.95523391,173.3,173.2,5.94]
[1729830725503,2.8876,173.24,173.2,5.94]
[1729830726694,19.95523391,173.3,173.2,5.94]
[1729830727288,356.95523391,173.33,173.2,25.89523391]
[1729830727488,25.72553391,173.38,173.2,25.89523391]
[1729830727489,25.72553391,173.38,173.21,2.5183]
[1729830727797,2.8866,173.29,173.22,19.95523391]
[1729830729400,2.8866,173.29,173.24,2.8874]
[1729830729601,2.8866,173.29,173.25,5.94]
[1729830730297,19.95523391,173.35,173.25,5.94]
[1729830730598,2.8865,173.3,173.25,8.8272]
[1729830731295,337.0,173.42,173.27,2.8869]
[1729830731496,5.94,173.43,173.21,2.5183]
[1729830731497,19.95523391,173.33,173.21,2.5183]
[1729830731701,19.95523391,173.33,173.22,2.3631]
[1729830731889,19.95523391,173.33,173.23,5.94]
[1729830732091,19.95523391,173.36,173.23,5.94]
[1729830732303,19.95523391,173.36,173.25,2.8872]
[1729830732304,2.8864,173.31,173.25,2.8872]
[1729830732493,2.8864,173.31,173.23,5.94]
[1729830733301,2.8864,173.31,173.26,2.8871]
[1729830734103,19.95523391,173.38,173.25,19.95523391]
[1729830734298,2.8861,173.32,173.27,2.8869]
[1729830734498,19.95523391,173.38,173.28,5.94]
[1729830734803,2.8861,173.33,173.28,5.94]
[1729830735101,19.95523391,173.38,173.28,5.94]
[1729830735499,19.95523391,173.38,173.28,8.8266]
[1729830735697,19.95523391,173.38,173.29,2.4]
[1729830736098,2.8855,173.36,173.29,2.4]
[1729830736303,19.95523391,173.38,173.29,2.4]
[1729830736696,2.8852,173.38,173.3,22.40233391]
[1729830737102,2.8852,173.38,173.3,84.76233391]
[1729830737300,337.0,173.42,173.3,84.76233391]
[1729830737802,337.0,173.42,173.32,2.886]
[1729830737998,337.0,173.42,173.33,5.94]
[1729830738198,2.8852,173.38,173.33,5.94]
[1729830739204,19.95523391,173.41,173.33,5.94]
[1729830739593,2.8855,173.36,173.33,5.94]
[1729830741803,19.95523391,173.41,173.33,5.94]
[1729830741997,2.88495897,173.47,173.33,5.94]
[1729830742202,19.95523391,173.43,173.33,5.94]
[1729830743106,2.8848,173.4,173.33,5.94]
[1729830743306,19.95523391,173.43,173.33,5.94]
[1729830743999,2.8853,173.37,173.33,5.94]
[1729830744400,356.95523391,173.46,173.33,5.94]
[1729830744611,356.95523391,173.46,173.34,2.8857]
[1729830745108,2.8849,173.4,173.34,2.8857]
[1729830745309,356.95523391,173.46,173.34,2.8856]
[1729830745505,356.95523391,173.46,173.33,25.89523391]
[1729830745807,19.95523391,173.46,173.33,25.89523391]
[1729830745996,19.95523391,173.46,173.33,19.95523391]
[1729830746202,19.95523391,173.43,173.3,84.76233391]
[1729830746498,19.95523391,173.43,173.33,2.8859]
[1729830746700,19.95523391,173.43,173.31,5.72]
[1729830746701,19.95523391,173.43,173.3,84.76233391]
[1729830746904,2.8855,173.36,173.34,5.72]
[1729830747797,2.8855,173.36,173.35,5.72]
[1729830748199,19.95523391,173.43,173.3,64.8071]
[1729830748405,2.8856,173.35,173.31,5.72]
[1729830748711,19.95523391,173.43,173.31,8.6061]
[1729830749005,2.8853,173.37,173.31,8.6061]
[1729830749503,2.8853,173.37,173.32,2.8861]
[1729830750201,19.95523391,173.43,173.3,64.8071]
[1729830750507,19.95523391,173.35,173.3,62.36]
[1729830750709,19.95523391,173.35,173.3,68.08]
[1729830751011,2.8863,173.31,173.3,5.72]
[1729830751204,19.95523391,173.35,173.29,5.72]
[1729830751702,2.8865,173.3,173.29,5.72]
[1729830755005,2.8865,173.3,173.24,2.8873]
[1729830755209,19.95523391,173.35,173.23,2.3744]
[1729830755414,19.95523391,173.35,173.24,5.72]
[1729830755706,2.8869,173.28,173.24,5.72]
[1729830756305,19.95523391,173.35,173.24,5.72]
[1729830757012,2.8864,173.3,173.24,8.6073]
[1729830757612,356.95523391,173.38,173.25,19.95523391]
[1729830758407,2.8863,173.31,173.26,2.8871]
[1729830758708,356.95523391,173.38,173.26,2.8871]
[1729830758911,337.0,173.38,173.29,2.8865]
[1729830759110,337.0,173.38,173.3,5.72]
[1729830759318,2.8855,173.36,173.3,10.6833]
[1729830759619,337.0,173.38,173.3,30.63853391]
[1729830760616,2.8853,173.37,173.31,2.8861]
[1729830761508,2.8853,173.37,173.32,2.8861]
[1729830761709,19.95523391,173.44,173.31,2.3546]
[1729830762215,19.95523391,173.44,173.3,30.63853391]
[1729830762216,2.886,173.33,173.3,10.6833]
[1729830763113,19.95523391,173.41,173.3,10.6833]
[1729830763315,19.95523391,173.38,173.31,5.72]
[1729830763607,19.95523391,173.38,173.3,5.72]
[1729830763814,2.8863,173.31,173.3,5.72]
[1729830764205,19.95523391,173.38,173.3,5.72]
[1729830764611,337.0,173.41,173.3,5.72]
[1729830764612,356.95523391,173.41,173.3,5.72]
[1729830765012,356.95523391,173.41,173.3,8.6063]
[1729830765413,2.8854,173.37,173.31,2.8862]
[1729830766117,2.8854,173.37,173.31,7.5948]
[1729830767815,2.8854,173.37,173.31,10.1637]
[1729830768418,2.8854,173.37,173.32,2.886]
[1729830768721,2.8851,173.38,173.32,2.886]
[1729830769120,19.95523391,173.44,173.32,2.886]
[1729830769317,2.8853,173.37,173.32,2.886]
[1729830769619,19.95523391,173.44,173.31,7.2775]
[1729830769821,2.885,173.39,173.31,7.2775]
[1729830770008,2.885,173.39,173.33,2.8858]
[1729830770211,2.885,173.39,173.33,19.95523391]
[1729830770413,25.67523391,173.47,173.33,19.95523391]
[1729830770613,0.98250062,173.46,173.33,19.95523391]
[1729830770823,19.95523391,173.48,173.33,19.95523391]
[1729830771021,2.8849,173.4,173.34,2.8857]
[1729830771219,19.95523391,173.45,173.35,5.72]
[1729830771609,2.8851,173.38,173.35,5.72]
[1729830772515,19.95523391,173.45,173.35,5.72]
[1729830773322,2.885,173.39,173.35,5.72]
[1729830773721,2.885,173.39,173.31,7.2775]
[1729830773914,19.95523391,173.45,173.32,5.5]
[1729830774114,2.8848,173.4,173.35,2.8854]
[1729830774315,12.46931132,173.45,173.34,12.46931132]
[1729830774723,2.8851,173.39,173.34,12.46931132]
[1729830775620,2.8846,173.42,173.36,15.35471132]
[1729830775816,2.8846,173.42,173.37,5.5]
[1729830776523,2.8846,173.41,173.37,5.5]
[1729830777229,12.46931132,173.47,173.37,5.5]
[1729830777230,2.8848,173.4,173.37,5.5]
[1729830777419,12.46931132,173.41,173.31,7.2775]
[1729830777620,12.46931132,173.41,173.32,5.5]
[1729830777821,12.46931132,173.38,173.31,5.5]
[1729830778323,2.8856,173.35,173.31,5.5]
[1729830780124,2.8858,173.34,173.31,5.5]
[1729830781424,2.8855,173.36,173.31,5.5]
[1729830781626,12.46931132,173.42,173.31,5.5]
[1729830781828,12.46931132,173.42,173.33,12.46931132]
[1729830782023,337.0,173.46,173.33,12.46931132]
[1729830782024,12.46931132,173.44,173.33,12.46931132]
[1729830782729,12.46931132,173.44,173.35,12.46931132]
[1729830782933,12.46931132,173.47,173.36,8.3853]
[1729830783137,5.5,173.5,173.36,10.5309]
[1729830783335,2.8844,173.43,173.36,10.5309]
[1729830783537,2.8844,173.43,173.37,2.8851]
[1729830783928,2.8844,173.42,173.37,2.8851]
[1729830784227,337.0,173.53,173.4,12.46931132]
[1729830784428,12.46931132,173.49,173.41,5.5]
[1729830784618,12.46931132,173.46,173.41,5.5]
[1729830784821,12.46931132,173.46,173.37,2.4158]
[1729830785022,12.46931132,173.46,173.38,5.5]
[1729830785220,12.46931132,173.44,173.38,5.5]
[1729830786224,2.8848,173.4,173.38,5.5]
[1729830788133,12.46931132,173.44,173.38,5.5]
[1729830788325,19.95354694,173.45,173.38,5.5]
[1729830788825,2.8845,173.42,173.38,5.5]
[1729830789021,25.45354694,173.49,173.38,5.5]
[1729830789934,2.8849,173.4,173.38,5.5]
[1729830790135,19.95354694,173.46,173.38,5.5]
[1729830790631,2.8848,173.4,173.38,5.5]
[1729830791234,19.95354694,173.43,173.39,5.5]
[1729830791428,19.95354694,173.43,173.37,5.5]
[1729830791835,2.8851,173.38,173.37,5.5]
[1729830792325,2.8854,173.36,173.34,62.32]
[1729830792527,2.8854,173.36,173.35,5.5]
[1729830793838,2.8854,173.36,173.34,62.32]
[1729830794032,19.95354694,173.43,173.35,5.5]
[1729830794237,19.95354694,173.46,173.35,5.5]
[1729830794541,19.95354694,173.42,173.35,5.5]
[1729830794739,2.8854,173.36,173.35,5.5]
[1729830799542,19.95354694,173.45,173.35,5.5]
[1729830801449,2.8851,173.38,173.35,5.5]
[1729830802754,19.95354694,173.42,173.35,5.5]
[1729830803549,2.8853,173.37,173.35,5.5]
[1729830804545,19.95354694,173.42,173.35,5.5]
[1729830804852,2.8854,173.36,173.35,5.5]
[1729830806547,2.8854,173.37,173.35,5.5]
[1729830809460,356.95354694,173.46,173.35,5.5]
[1729830810362,12.47035671,173.44,173.35,5.5]
[1729830811168,2.8851,173.39,173.35,5.5]
[1729830811867,12.47035671,173.44,173.35,20.85585671]
[1729830813269,2.8848,173.4,173.35,17.97035671]
[1729830814071,2.8845,173.42,173.35,20.85585671]
[1729830814266,12.47035671,173.44,173.35,17.97035671]
[1729830814471,12.47035671,173.47,173.35,17.97035671]
[1729830814673,12.47035671,173.49,173.38,2.885]
[1729830814864,12.47035671,173.49,173.39,2.4567]
[1729830815065,12.47035671,173.49,173.4,5.42]
[1729830815878,2.8842,173.44,173.4,5.42]
[1729830816066,12.47035671,173.49,173.4,5.42]
[1729830816570,2.8842,173.44,173.4,5.42]
[1729830817369,2.884,173.45,173.4,5.42]
[1729830817774,12.47035671,173.49,173.4,5.42]
[1729830818270,2.8843,173.43,173.4,5.42]
[1729830818474,12.47035671,173.49,173.4,5.42]
[1729830818976,2.8845,173.42,173.4,5.42]
[1729830820683,2.8843,173.43,173.4,5.42]
[1729830821380,2.8837,173.47,173.4,5.42]
[1729830821580,12.47035671,173.47,173.4,5.42]
[1729830822666,12.47035671,173.45,173.4,5.42]
[1729830823876,2.8846,173.41,173.4,5.42]
[1729830824978,12.47035671,173.45,173.4,5.42]
[1729830825673,2.8845,173.42,173.4,5.42]
[1729830828378,2.8842,173.44,173.4,5.42]
[1729830828584,12.47035671,173.45,173.4,5.42]
[1729830828981,12.47035671,173.43,173.34,4.9568]
[1729830829176,12.47035671,173.41,173.35,1.44348889]
[1729830829373,12.47035671,173.38,173.34,5.42]
[1729830829578,2.8856,173.35,173.34,5.42]
[1729830829779,12.47035671,173.4,173.34,5.42]
[1729830830182,12.47035671,173.43,173.34,5.42]
[1729830830387,12.47035671,173.45,173.35,12.47035671]
[1729830830586,12.47035671,173.45,173.36,1.44360611]
[1729830830779,12.47035671,173.45,173.36,7.3107]
[1729830831081,2.8846,173.42,173.37,1.44339892]
[1729830831282,2.8846,173.42,173.36,10.1961]
[1729830831484,2.8846,173.42,173.37,1.44337705]
[1729830831683,2.8846,173.41,173.36,10.1961]
[1729830831881,12.47035671,173.45,173.37,1.4433775]
[1729830832080,12.47035671,173.45,173.36,7.3107]
[1729830832282,12.47035671,173.45,173.37,1.44341997]
[1729830832487,2.8847,173.41,173.36,7.3107]
[1729830832691,2.8847,173.41,173.37,1.44342495]
[1729830832989,2.8847,173.41,173.36,7.3107]
[1729830833283,12.47035671,173.43,173.37,1.44342495]
[1729830833489,2.8848,173.4,173.36,7.3107]
[1729830833690,2.8848,173.4,173.37,1.44342988]
[1729830833891,2.8848,173.4,173.36,7.3107]
[1729830834184,2.8848,173.4,173.37,1.44342508]
[1729830834387,2.8848,173.4,173.38,5.2]
[1729830835290,2.8849,173.39,173.38,5.2]
[1729830835692,2.8848,173.4,173.38,5.2]
[1729830836894,2.8846,173.41,173.38,5.2]
[1729830838486,12.47035671,173.45,173.38,5.2]
[1729830838686,2.8844,173.42,173.38,5.2]
[1729830840891,12.47035671,173.47,173.38,5.2]
[1729830841090,2.8847,173.41,173.38,5.2]
[1729830842194,12.47035671,173.43,173.38,5.2]
[1729830842387,12.47035671,173.39,173.29,2.3498]
[1729830842690,12.47035671,173.39,173.32,5.2]
[1729830843193,12.47035671,173.4,173.33,1.44378593]
[1729830843398,337.0,173.48,173.33,1.44378593]
[1729830843399,337.0,173.48,173.33,12.47035671]
[1729830843591,17.67035671,173.45,173.34,1.44367284]
[1729830843900,2.8844,173.42,173.35,1.44367284]
[1729830844199,17.67035671,173.45,173.35,4.8777]
[1729830844493,337.0,173.48,173.36,12.47035671]
[1729830844693,349.47035671,173.48,173.37,6.64352893]
[1729830844994,2.8847,173.41,173.37,5.2]
[1729830846194,12.47035671,173.43,173.37,5.2]
[1729830846802,337.0,173.48,173.34,5.2]
[1729830846803,12.47035671,173.41,173.34,5.2]
[1729830847090,12.47035671,173.38,173.32,5.2]
[1729830847486,12.47035671,173.38,173.29,4.8793]
[1729830847690,12.47035671,173.38,173.3,6.64384703]
[1729830847890,2.886,173.33,173.3,5.2]
[1729830848191,2.886,173.33,173.31,1.44388831]
[1729830848491,2.886,173.33,173.3,5.2]
[1729830848690,2.886,173.33,173.31,1.4438837]
[1729830848895,2.886,173.33,173.3,5.2]
[1729830849092,2.886,173.33,173.31,1.44391516]
[1729830849393,2.886,173.33,173.3,5.2]
[1729830849591,2.886,173.33,173.31,1.44390362]
[1729830849791,2.886,173.33,173.3,5.2]
[1729830849997,2.886,173.33,173.31,1.44389105]
[1729830850197,2.886,173.33,173.3,5.2]
[1729830850400,2.886,173.33,173.31,1.44389105]
[1729830850590,2.886,173.33,173.3,5.2]
[1729830850786,2.886,173.33,173.31,1.44389105]
[1729830851095,2.886,173.33,173.3,5.2]
[1729830852500,2.886,173.33,173.29,7.7295]
[1729830852798,2.886,173.33,173.3,1.44389105]
[1729830853098,2.886,173.33,173.29,7.7295]
[1729830853303,2.886,173.33,173.3,1.44388319]
[1729830853493,2.886,173.33,173.29,7.7295]
[1729830853691,2.886,173.33,173.3,1.44388319]
[1729830853899,2.886,173.33,173.29,7.7295]
[1729830854196,2.886,173.33,173.3,1.44388986]
[1729830854400,2.886,173.33,173.29,7.7295]
[1729830854593,2.886,173.33,173.3,1.44389105]
[1729830854795,2.8855,173.36,173.3,2.8864]
[1729830855003,12.47035671,173.38,173.31,1.44385358]
[1729830855198,17.67035671,173.41,173.31,1.44385358]
[1729830855406,17.67035671,173.41,173.32,1.44368569]
[1729830855703,2.8855,173.36,173.3,15.35665671]
[1729830855900,2.8855,173.36,173.31,1.44370311]
[1729830856093,2.8855,173.36,173.32,1.44370311]
[1729830856402,2.8855,173.36,173.3,15.35665671]
[1729830856403,2.8855,173.36,173.33,1.44370311]
[1729830856699,2.8853,173.37,173.31,2.8861]
[1729830856905,2.8853,173.37,173.32,1.44368493]
[1729830857198,2.8853,173.37,173.33,1.44368493]
[1729830857394,2.8853,173.37,173.34,5.2]
[1729830857602,12.47035671,173.45,173.34,5.2]
[1729830857803,12.47035671,173.45,173.35,1.44341739]
[1729830858000,12.47035671,173.45,173.34,5.2]
[1729830858196,2.8849,173.4,173.35,1.44355388]
[1729830858389,2.8849,173.4,173.34,8.0857]
[1729830858595,2.8849,173.4,173.35,1.4435077]
[1729830858792,2.885,173.39,173.34,8.0857]
[1729830859203,12.47035671,173.42,173.35,1.44349343]
[1729830859496,12.47035671,173.42,173.34,5.2]
[1729830859697,12.47035671,173.42,173.35,1.44349495]
[1729830859895,12.47035671,173.42,173.34,5.2]
[1729830860198,2.8851,173.39,173.35,1.44349495]
[1729830860500,2.8851,173.39,173.34,5.2]
[1729830860699,2.8851,173.39,173.35,1.44350329]
[1729830860901,2.8851,173.39,173.34,5.2]
[1729830861103,2.8851,173.39,173.35,1.44350329]
[1729830861303,2.8851,173.39,173.34,5.2]
[1729830861490,2.8851,173.39,173.35,1.44349972]
[1729830861803,2.8851,173.39,173.34,5.2]
[1729830862000,2.8851,173.39,173.35,1.44349482]
[1729830862206,2.8851,173.39,173.34,5.2]
[1729830862502,2.8851,173.39,173.35,1.44348666]
[1729830862702,2.8852,173.38,173.34,5.2]
[1729830862904,2.8852,173.38,173.35,1.44348679]
[1729830863201,2.8852,173.38,173.34,5.2]
[1729830863503,2.8852,173.38,173.35,1.44348679]
[1729830863706,2.8852,173.38,173.34,5.2]
[1729830863906,2.8852,173.38,173.35,1.44349376]
[1729830864200,2.8852,173.38,173.34,5.2]
[1729830864400,2.8852,173.38,173.35,1.44349482]
[1729830864604,2.8852,173.38,173.34,5.2]
[1729830864803,2.8852,173.38,173.35,1.44349482]
[1729830865002,2.8852,173.38,173.34,5.2]
[1729830865199,2.8852,173.38,173.35,1.44348785]
[1729830865400,2.8852,173.38,173.34,5.2]
[1729830865604,2.8852,173.38,173.35,1.44348785]
[1729830865910,2.8856,173.35,173.34,5.2]
[1729830866497,12.47035671,173.4,173.33,5.0]
[1729830866498,2.8858,173.34,173.33,5.0]
[1729830867611,2.886,173.33,173.29,2.5295]
[1729830867800,2.886,173.33,173.28,5.0]
[1729830867801,12.47035671,173.33,173.28,5.0]
[1729830868008,12.47035671,173.33,173.29,1.44392443]
[1729830868200,12.47035671,173.33,173.28,5.0]
[1729830868707,2.8864,173.31,173.28,5.0]
[1729830874107,2.8866,173.29,173.28,5.0]
[1729830874313,12.47035671,173.31,173.26,5.0]
[1729830876406,2.8867,173.29,173.26,5.0]
[1729830876704,12.47035671,173.31,173.26,5.0]
[1729830877807,2.8867,173.29,173.26,5.0]
[1729830879005,337.0,173.36,173.26,5.0]
[1729830879006,12.47035671,173.35,173.26,5.0]
[1729830880012,2.8862,173.32,173.26,7.8869]
[1729830880511,2.8862,173.32,173.26,20.35725671]
[1729830881513,2.8863,173.31,173.26,7.8869]
[1729830884316,12.47035671,173.35,173.26,5.0]
[1729830884508,12.47035671,173.36,173.26,5.0]
[1729830885212,12.47035671,173.36,173.26,7.887]
[1729830886014,2.8863,173.31,173.26,7.887]